Workbook

Sheet Spieler
B1: Spieler | C1: Gemeldet | D1: Startgeld 20€+15€ | G1: Century Jackpot: | I1: 30.5
A2: 1 | B2: Marco Weber | C2: gemeldet | D2: ok | E2: =IF(B2="",0,IF(D2="X",5000016,RAND()*1000*20)) -> 10590.59926 | G2: Jackpotberechnung
A3: 2 | B3: Tino Delling | C3: gemeldet | D3: ok | E3: =IF(B3="",0,IF(D3="X",5000014,RAND()*1000*20)) -> 17159.0323 | F3: Aktualisierung: | G3: 2020-08-18 | J3: Jackpotsumme: | L3: =486 -> 486 | M3: =L3*N3 -> 97.2 | N3: 0.2
A4: 3 | B4: Marec Stachly | C4: gemeldet | D4: ok | E4: =IF(B4="",0,IF(D4="X",5000013,RAND()*1000*20)) -> 19494.11416 | J4: Startgeld Champions Cup: | L4: 20 | M4: =L4*16 -> 320
A5: 4 | B5: Felix Kirsten | C5: gemeldet | D5: ok | E5: =IF(B5="",0,IF(D5="X",5000008,RAND()*1000*20)) -> 1264.254972 | J5: Champion Cup 20%: | L5: =L3-M3 -> 388.8 | M5: =SUM(M3:M4) -> 417.2
A6: 5 | B6: Moritz Thomas | C6: gemeldet | D6: ok | E6: =IF(B6="",0,IF(D6="X",5000006,RAND()*1000*20)) -> 2786.049375
A7: 6 | B7: Gustav Hollnagel | C7: gemeldet | E7: =IF(B7="",0,IF(D7="X",5000003,RAND()*1000*20)) -> 17363.39075 | G7: Gesamtjackpot | K7: Champions Cup
A8: 7 | B8: Michael Kandler | C8: gemeldet | D8: ok | E8: =IF(B8="",0,IF(D8="X",5000007,RAND()*1000*20)) -> 2550.103611 | G8: 1 | H8: 0.19 | I8: =$L$5*H8 -> 73.872 | J8: Marco Weber | K8: Platz 1 | L8: 0.35 | M8: =$M$5*L8 -> 146.02
A9: 8 | B9: Aaron Bocksberger | C9: gemeldet | D9: 20 | E9: =IF(B9="",0,IF(D9="X",5000015,RAND()*1000*20)) -> 11855.90265 | G9: 2 | H9: 0.15 | I9: =$L$5*H9 -> 58.32 | J9: Tino Delling | K9: Platz 2 | L9: 0.2 | M9: =$M$5*L9 -> 83.44
A10: 9 | B10: Marko Straßburger | C10: gemeldet | D10: ok | E10: =IF(B10="",0,IF(D10="X",5000011,RAND()*1000*20)) -> 10481.43823 | G10: 3 | H10: 0.12 | I10: 46.656 | J10: Marec Stachly | K10: Platz 3 | L10: 0.15 | M10: =$M$5*L10 -> 62.58
A11: 10 | B11: Andy Swennen | C11: gemeldet | D11: ok | E11: =IF(B11="",0,IF(D11="X",5000001,RAND()*1000*20)) -> 14770.02485 | G11: 4 | H11: 0.1 | I11: 38.88 | J11: Felix Kirsten | K11: Platz 4 | L11: 0.1 | M11: 41.72
A12: 11 | B12: Sven Ohlenroth | C12: Los | E12: =IF(B12="",0,IF(D12="X",5000017,RAND()*1000*20)) -> 3680.38213 | G12: 5 | H12: 0.06 | I12: 23.328 | J12: Moritz Thomas | K12: Platz 5 | L12: 0.05 | M12: 20.86
A13: 12 | B13: Daniel Schneider | C13: Los | E13: =IF(B13="",0,IF(D13="X",5000010,RAND()*1000*20)) -> 12360.20541 | G13: 6 | H13: 0.06 | I13: 23.328 | J13: Gustav Hollnagel | K13: Platz 6 | L13: 0.05 | M13: 20.86
A14: 13 | B14: David Gärtner | C14: gemeldet | E14: =IF(B14="",0,IF(D14="X",5000005,RAND()*1000*20)) -> 13907.1992 | G14: 7 | H14: 0.06 | I14: 23.328 | J14: Michael Kandler | K14: Platz 7 | L14: 0.05 | M14: 20.86
A15: 14 | B15: Jörg Bonitz | C15: Los | E15: =IF(B15="",0,IF(D15="X",5000019,RAND()*1000*20)) -> 13921.46555 | G15: 8 | H15: 0.06 | I15: 23.328 | J15: Aaron Bocksberger | K15: Platz 8 | L15: 0.05 | M15: 20.86
A16: 15 | B16: Christopher Jaritz | C16: gemeldet | D16: ok | E16: =IF(B16="",0,IF(D16="X",5000012,RAND()*1000*20)) -> 19343.11532 | G16: 9 | H16: 0.03 | I16: 11.664 | J16: Marko Straßburger
A17: 16 | B17: Andreas Hartung | C17: Los | E17: =IF(B17="",0,IF(D17="X",5000018,RAND()*1000*20)) -> 16068.13473 | G17: 10 | H17: 0.03 | I17: 11.664 | J17: Andy Swennen | K17: Prüfsumme: | L17: =SUM(L8:L15) -> 1 | M17: =SUM(M8:M15) -> 417.2
G18: 11 | H18: 0.03 | I18: 11.664 | J18: Thomas Krause
B19: Nachrücker | G19: 12 | H19: 0.03 | I19: 11.664 | J19: Paul N. Schmidt
B20: Sven Ohlenroth | C20: gemeldet | D20: ok | G20: 13 | H20: 0.02 | I20: 7.776 | J20: David Gärtner
B21: Daniel Schneider | C21: gemeldet | D21: 20 | G21: 14 | H21: 0.02 | I21: 7.776 | J21: Florian Schmidt
B22: Christopher Buße | C22: ? | G22: 15 | H22: 0.02 | I22: 7.776 | J22: Christopher Jaritz
B23: Andreas Hartung | C23: gemeldet | D23: ok | G23: 16 | H23: 0.02 | I23: 7.776 | J23: Ronny Rejke
B24: Frank Brömel
B25: Hilmar Habrom | G25: Prüfsumme: | H25: =SUM(H8:H23) -> 1 | I25: =SUM(I8:I23) -> 388.8 | J25: 30 € gehen wieder in den Jackpot (4 Spieler)
B26: Frank Müller
B27: Jan Utikal
B28: Thomas Metzler | G28: Meldeschluss ist der 05.09.2020, 24:00 Uhr!
B29: Rene Scheurer | G29: Die Nachrücker werden gelost, da mindestens 3 Top 16 Spieler nicht teilnehmen!
B30: Paul Arthur Jeroch | G30: Jeder Nachrücker zieht sein Los am Turniertag!
B31: Wei Chen | G31: Allen Teilnehmern des Champions Cup sind die Teilnahmebedingungen bekannt und werden akzeptiert!
B32: Hannes Hermsdorf | G32: Nachzulesen: | H32: https://www.saxonian-snooker.de/3LaenderRanking/3lr-regularien.pdf
B33: Holger Hänel
B34: Mario Gehrke
B35: Alex Nikitin
B36: Justin Gruner
B37: Sylvio Fischer
B38: Fabian Schulze
B39: Thomas Nierobisch
B40: Frank Jacob
B41: …
B42: Jörg Bonitz | C42: gemeldet

Sheet Gruppen
A1: A | C1: Spieler | D1: M | E1: W | F1: L | G1: F+ | H1: F- | L1: Rang | M1: Rang | N1: P+ | R1: Startzeit | S1: Spieler | T1: Spieler | V1: Breaks 30+ | W1: F+ | X1: F- | AC1: Breaks 30+
B2: 1 | C2: =Spieler!B2 -> Marco Weber | D2: =Y2+Y5+Y7 -> 3 | E2: =Z2+Z5+Z7 -> 1 | F2: =AA2+AA5+AA7 -> 2 | G2: =W2+W5+W7 -> 2 | H2: =X2+X5+X7 -> 4 | L2: =IF(C2="",(-90000),(E2*1000)+(G2*100)+D2-(F2*500)-(H2*50)-N2) -> 3 | M2: =IF(D2=0,"",RANK(L2,L2:L5)) -> 3 | O2: =IF(C2="","",C2) -> Marco Weber | Q2: 1 | R2: 10:00:00 | S2: =C2 -> Marco Weber | T2: =C3 -> Moritz Thomas | W2: 0 | X2: 2 | Y2: =IF(W2+X2>0,1) -> 1 | Z2: =IF(W2>X2,1,0) -> 0 | AA2: =IF(X2>W2,1,0) -> 1 | AC2: 53
B3: 2 | C3: =Spieler!B6 -> Moritz Thomas | D3: =Y2+Y4+Y6 -> 3 | E3: =AA2+Z4+Z6 -> 2 | F3: =Z2+AA4+AA6 -> 1 | G3: =X2+W4+W6 -> 4 | H3: =W2+X4+X6 -> 2 | L3: =IF(C3="",(-90000),(E3*1000)+(G3*100)+D3-(F3*500)-(H3*50)-N3) -> 1803 | M3: =IF(D3=0,"",RANK(L3,L2:L5)) -> 2 | O3: =IF(C3="","",C3) -> Moritz Thomas | Q3: 2 | R3: 10:39:00 | S3: =IF(C5="","",C4) -> Daniel Schneider | T3: =IF(S3="","",C5) -> Andreas Hartung | V3: 63, 55 | W3: 2 | X3: 0 | Y3: =IF(W3+X3>0,1) -> 1 | Z3: =IF(W3>X3,1,0) -> 1 | AA3: =IF(X3>W3,1,0) -> 0
B4: 3 | C4: =Spieler!B13 -> Daniel Schneider | D4: =Y3+Y4+Y7 -> 3 | E4: =Z3+AA4+AA7 -> 3 | F4: =AA3+Z4+Z7 -> 0 | G4: =W3+X4+X7 -> 6 | H4: =X3+W4+W7 -> 0 | L4: 3603 | M4: =IF(D4=0,"",RANK(L4,L2:L5)) -> 1 | O4: Daniel Schneider | Q4: 3 | R4: 11:06:00 | S4: =T2 -> Moritz Thomas | T4: =C4 -> Daniel Schneider | W4: 0 | X4: 2 | Y4: 1 | Z4: 0 | AA4: 1 | AC4: 39,32,33
B5: 4 | C5: =Spieler!B17 -> Andreas Hartung | D5: =Y3+Y6+Y5 -> 3 | E5: =AA3+AA6+AA5 -> 0 | F5: =Z3+Z6+Z5 -> 3 | G5: =X3+X6+X5 -> 0 | H5: =W3+W6+W5 -> 6 | L5: -1797 | M5: =IF(D5=0,"",RANK(L5,L2:L5)) -> 4 | O5: Andreas Hartung | Q5: 4 | R5: 11:35:00 | S5: =IF(C5="","",S2) -> Marco Weber | T5: =C5 -> Andreas Hartung | V5: 56,37 | W5: 2 | X5: 0 | Y5: 1 | Z5: 1 | AA5: 0
Q6: 5 | R6: 12:01:00 | S6: =IF(C5="","",C3) -> Moritz Thomas | T6: =IF(S6="","",C5) -> Andreas Hartung | V6: 31 | W6: 2 | X6: 0 | Y6: 1 | Z6: 1 | AA6: 0
Q7: 6 | R7: 13:15:00 | S7: =C2 -> Marco Weber | T7: =C4 -> Daniel Schneider | W7: 0 | X7: 2 | Y7: 1 | Z7: 0 | AA7: 1
A10: B | C10: Spieler | D10: M | E10: W | F10: L | G10: F+ | H10: F- | L10: Rang | M10: Rang | N10: P+ | R10: Startzeit | S10: Spieler | T10: Spieler | V10: Breaks 30+ | W10: F+ | X10: F- | AC10: Breaks 30+
B11: 1 | C11: =Spieler!B3 -> Tino Delling | D11: =Y11+Y14+Y16 -> 3 | E11: =Z11+Z14+Z16 -> 3 | F11: =AA11+AA14+AA16 -> 0 | G11: =W11+W14+W16 -> 6 | H11: =X11+X14+X16 -> 0 | L11: =IF(C11="",(-90000),(E11*1000)+(G11*100)+D11-(F11*500)-(H11*50)-N11) -> 3603 | M11: =IF(D11=0,"",RANK(L11,L11:L14)) -> 1 | O11: =IF(C11="","",C11) -> Tino Delling | Q11: 1 | R11: 10:00:00 | S11: =C11 -> Tino Delling | T11: =C12 -> Gustav Hollnagel | W11: 2 | X11: 0 | Y11: =IF(W11+X11>0,1) -> 1 | Z11: =IF(W11>X11,1,0) -> 1 | AA11: =IF(X11>W11,1,0) -> 0
B12: 2 | C12: =Spieler!B7 -> Gustav Hollnagel | D12: =Y11+Y13+Y15 -> 3 | E12: =AA11+Z13+Z15 -> 2 | F12: =Z11+AA13+AA15 -> 1 | G12: =X11+W13+W15 -> 4 | H12: =W11+X13+X15 -> 3 | L12: =IF(C12="",(-90000),(E12*1000)+(G12*100)+D12-(F12*500)-(H12*50)-N12) -> 1753 | M12: =IF(D12=0,"",RANK(L12,L11:L14)) -> 2 | O12: =IF(C12="","",C12) -> Gustav Hollnagel | Q12: 2 | R12: 10:43:00 | S12: =IF(C14="","",C13) -> Sven Ohlenroth | T12: =IF(S12="","",C14) -> Christopher Jaritz | W12: 0 | X12: 2 | Y12: =IF(W12+X12>0,1) -> 1 | Z12: =IF(W12>X12,1,0) -> 0 | AA12: =IF(X12>W12,1,0) -> 1
B13: 3 | C13: =Spieler!B12 -> Sven Ohlenroth | D13: =Y12+Y13+Y16 -> 3 | E13: =Z12+AA13+AA16 -> 0 | F13: =AA12+Z13+Z16 -> 3 | G13: =W12+X13+X16 -> 0 | H13: =X12+W13+W16 -> 6 | L13: -1797 | M13: =IF(D13=0,"",RANK(L13,L11:L14)) -> 4 | O13: Sven Ohlenroth | Q13: 3 | R13: 11:54:00 | S13: =T11 -> Gustav Hollnagel | T13: =C13 -> Sven Ohlenroth | W13: 2 | X13: 0 | Y13: 1 | Z13: 1 | AA13: 0
B14: 4 | C14: =Spieler!B16 -> Christopher Jaritz | D14: =Y12+Y15+Y14 -> 3 | E14: =AA12+AA15+AA14 -> 1 | F14: =Z12+Z15+Z14 -> 2 | G14: =X12+X15+X14 -> 3 | H14: =W12+W15+W14 -> 4 | L14: 103 | M14: =IF(D14=0,"",RANK(L14,L11:L14)) -> 3 | O14: Christopher Jaritz | Q14: 4 | R14: 12:42:00 | S14: =IF(C14="","",S11) -> Tino Delling | T14: =C14 -> Christopher Jaritz | W14: 2 | X14: 0 | Y14: 1 | Z14: 1 | AA14: 0
Q15: 5 | R15: 13:23:00 | S15: =IF(C14="","",C12) -> Gustav Hollnagel | T15: =IF(S15="","",C14) -> Christopher Jaritz | W15: 2 | X15: 1 | Y15: 1 | Z15: 1 | AA15: 0
Q16: 6 | R16: 13:43:00 | S16: =C11 -> Tino Delling | T16: =C13 -> Sven Ohlenroth | V16: 31 | W16: 2 | X16: 0 | Y16: 1 | Z16: 1 | AA16: 0
A19: C | C19: Spieler | D19: M | E19: W | F19: L | G19: F+ | H19: F- | L19: Rang | M19: Rang | N19: P+ | R19: Startzeit | S19: Spieler | T19: Spieler | V19: Breaks 30+ | W19: F+ | X19: F- | AC19: Breaks 30+
B20: 1 | C20: =Spieler!B4 -> Marec Stachly | D20: =Y20+Y23+Y25 -> 3 | E20: =Z20+Z23+Z25 -> 3 | F20: =AA20+AA23+AA25 -> 0 | G20: =W20+W23+W25 -> 6 | H20: =X20+X23+X25 -> 0 | L20: =IF(C20="",(-90000),(E20*1000)+(G20*100)+D20-(F20*500)-(H20*50)-N20) -> 3603 | M20: =IF(D20=0,"",RANK(L20,L20:L23)) -> 1 | O20: =IF(C20="","",C20) -> Marec Stachly | Q20: 1 | R20: 10:00:00 | S20: =C20 -> Marec Stachly | T20: =C21 -> Michael Kandler | W20: 2 | X20: 0 | Y20: =IF(W20+X20>0,1) -> 1 | Z20: =IF(W20>X20,1,0) -> 1 | AA20: =IF(X20>W20,1,0) -> 0
B21: 2 | C21: =Spieler!B8 -> Michael Kandler | D21: =Y20+Y22+Y24 -> 3 | E21: =AA20+Z22+Z24 -> 2 | F21: =Z20+AA22+AA24 -> 1 | G21: =X20+W22+W24 -> 4 | H21: =W20+X22+X24 -> 4 | L21: =IF(C21="",(-90000),(E21*1000)+(G21*100)+D21-(F21*500)-(H21*50)-N21) -> 1703 | M21: =IF(D21=0,"",RANK(L21,L20:L23)) -> 2 | O21: =IF(C21="","",C21) -> Michael Kandler | Q21: 2 | R21: 10:51:00 | S21: =IF(C23="","",C22) -> Andy Swennen | T21: =IF(S21="","",C23) -> Jörg Bonitz | W21: 2 | X21: 0 | Y21: =IF(W21+X21>0,1) -> 1 | Z21: =IF(W21>X21,1,0) -> 1 | AA21: =IF(X21>W21,1,0) -> 0
B22: 3 | C22: =Spieler!B11 -> Andy Swennen | D22: =Y21+Y22+Y25 -> 3 | E22: =Z21+AA22+AA25 -> 1 | F22: =AA21+Z22+Z25 -> 2 | G22: =W21+X22+X25 -> 3 | H22: =X21+W22+W25 -> 4 | L22: 103 | M22: =IF(D22=0,"",RANK(L22,L20:L23)) -> 3 | O22: Andy Swennen | Q22: 3 | R22: 11:34:00 | S22: =T20 -> Michael Kandler | T22: =C22 -> Andy Swennen | W22: 2 | X22: 1 | Y22: 1 | Z22: 1 | AA22: 0
B23: 4 | C23: =Spieler!B15 -> Jörg Bonitz | D23: =Y21+Y24+Y23 -> 3 | E23: =AA21+AA24+AA23 -> 0 | F23: =Z21+Z24+Z23 -> 3 | G23: =X21+X24+X23 -> 1 | H23: =W21+W24+W23 -> 6 | L23: -1697 | M23: =IF(D23=0,"",RANK(L23,L20:L23)) -> 4 | O23: Jörg Bonitz | Q23: 4 | R23: 12:50:00 | S23: =IF(C23="","",S20) -> Marec Stachly | T23: =C23 -> Jörg Bonitz | W23: 2 | X23: 0 | Y23: 1 | Z23: 1 | AA23: 0
Q24: 5 | R24: 13:34:00 | S24: =IF(C23="","",C21) -> Michael Kandler | T24: =IF(S24="","",C23) -> Jörg Bonitz | W24: 2 | X24: 1 | Y24: 1 | Z24: 1 | AA24: 0
Q25: 6 | R25: 14:12:00 | S25: =C20 -> Marec Stachly | T25: =C22 -> Andy Swennen | W25: 2 | X25: 0 | Y25: 1 | Z25: 1 | AA25: 0
A28: D | C28: Spieler | D28: M | E28: W | F28: L | G28: F+ | H28: F- | L28: Rang | M28: Rang | N28: P+ | R28: Startzeit | S28: Spieler | T28: Spieler | V28: Breaks 30+ | W28: F+ | X28: F- | AC28: Breaks 30+
B29: 1 | C29: =Spieler!B5 -> Felix Kirsten | D29: =Y29+Y32+Y34 -> 3 | E29: =Z29+Z32+Z34 -> 3 | F29: =AA29+AA32+AA34 -> 0 | G29: =W29+W32+W34 -> 6 | H29: =X29+X32+X34 -> 0 | L29: =IF(C29="",(-90000),(E29*1000)+(G29*100)+D29-(F29*500)-(H29*50)-N29) -> 3603 | M29: =IF(D29=0,"",RANK(L29,L29:L32)) -> 1 | O29: =IF(C29="","",C29) -> Felix Kirsten | Q29: 1 | R29: 10:00:00 | S29: =C29 -> Felix Kirsten | T29: =C30 -> Aaron Bocksberger | W29: 2 | X29: 0 | Y29: =IF(W29+X29>0,1) -> 1 | Z29: =IF(W29>X29,1,0) -> 1 | AA29: =IF(X29>W29,1,0) -> 0
B30: 2 | C30: =Spieler!B9 -> Aaron Bocksberger | D30: =Y29+Y31+Y33 -> 3 | E30: =AA29+Z31+Z33 -> 1 | F30: =Z29+AA31+AA33 -> 2 | G30: =X29+W31+W33 -> 2 | H30: =W29+X31+X33 -> 4 | L30: =IF(C30="",(-90000),(E30*1000)+(G30*100)+D30-(F30*500)-(H30*50)-N30) -> 2 | M30: =IF(D30=0,"",RANK(L30,L29:L32)) -> 2 | N30: 1 | O30: =IF(C30="","",C30) -> Aaron Bocksberger | Q30: 2 | R30: 11:01:00 | S30: =IF(C32="","",C31) -> Marko Straßburger | T30: =IF(S30="","",C32) -> David Gärtner | W30: 2 | X30: 0 | Y30: =IF(W30+X30>0,1) -> 1 | Z30: =IF(W30>X30,1,0) -> 1 | AA30: =IF(X30>W30,1,0) -> 0
B31: 3 | C31: =Spieler!B10 -> Marko Straßburger | D31: =Y30+Y31+Y34 -> 3 | E31: =Z30+AA31+AA34 -> 1 | F31: =AA30+Z31+Z34 -> 2 | G31: =W30+X31+X34 -> 2 | H31: =X30+W31+W34 -> 4 | L31: 0 | M31: =IF(D31=0,"",RANK(L31,L29:L32)) -> 4 | N31: 3 | O31: Marko Straßburger | Q31: 3 | R31: 11:56:00 | S31: =T29 -> Aaron Bocksberger | T31: =C31 -> Marko Straßburger | W31: 2 | X31: 0 | Y31: 1 | Z31: 1 | AA31: 0
B32: 4 | C32: =Spieler!B14 -> David Gärtner | D32: =Y30+Y33+Y32 -> 3 | E32: =AA30+AA33+AA32 -> 1 | F32: =Z30+Z33+Z32 -> 2 | G32: =X30+X33+X32 -> 2 | H32: =W30+W33+W32 -> 4 | L32: 1 | M32: =IF(D32=0,"",RANK(L32,L29:L32)) -> 3 | N32: 2 | O32: David Gärtner | Q32: 4 | R32: 13:09:00 | S32: =IF(C32="","",S29) -> Felix Kirsten | T32: =C32 -> David Gärtner | V32: 49 | W32: 2 | X32: 0 | Y32: 1 | Z32: 1 | AA32: 0
Q33: 5 | R33: 13:47:00 | S33: =IF(C32="","",C30) -> Aaron Bocksberger | T33: =IF(S33="","",C32) -> David Gärtner | W33: 0 | X33: 2 | Y33: 1 | Z33: 0 | AA33: 1
Q34: 6 | R34: 14:28:00 | S34: =C29 -> Felix Kirsten | T34: =C31 -> Marko Straßburger | W34: 2 | X34: 0 | Y34: 1 | Z34: 1 | AA34: 0

Sheet Finals
B1: CHAMPIONS CUP - 2020 -Finals
B2: Viertelfinals | C2: Bo5 | D2: Break | F2: Halbfinals | G2: Bo5 | H2: Break | J2: Finals | K2: Bo5 | L2: Break | P2: Ranking
A3: 1 | B3: =IFERROR(VLOOKUP(1,Gruppen!M2:O5,3,FALSE),"") -> Daniel Schneider | C3: 3 | D3: 41 | P3: 1 | Q3: =IF($K$8<$K$9,$J$9,IF($K$9<$K$8,$J$8,"")) -> Felix Kirsten
B4: =IFERROR(VLOOKUP(2,Gruppen!M29:O32,3,FALSE),"") -> Aaron Bocksberger | C4: 2 | P4: 2 | Q4: =IF($K$8>$K$9,$J$9,IF($K$9>$K$8,$J$8,"")) -> Daniel Schneider
P5: 3 | Q5: =IF($K$13>$K$14,$J$13,IF($K$14>$K$13,$J$14,"")) -> Gustav Hollnagel
A6: 2 | B6: =IFERROR(VLOOKUP(1,Gruppen!M11:O14,3,FALSE),"") -> Tino Delling | C6: 3 | E6: 1 | F6: =IF(C3=C4,"",IF(C3>C4,B3,B4)) -> Daniel Schneider | G6: 3 | H6: 32 | P6: 4 | Q6: =IF($K$13<$K$14,$J$13,IF($K$14<$K$13,$J$14,"")) -> Tino Delling
B7: =IFERROR(VLOOKUP(2,Gruppen!M20:O23,3,FALSE),"") -> Michael Kandler | C7: 1 | F7: =IF($C$6=$C$7,"",IF($C$6>$C$7,$B$6,$B$7)) -> Tino Delling | G7: 0 | J7: FINALE CHAMPIONS CUP | N7: Sieger | P7: 5 | Q7: =IF(C3>C4,B4,IF(C4>C3,B3,"")) -> Aaron Bocksberger
J8: =IF(G6=G7,"",IF(G6>G7,F6,F7)) -> Daniel Schneider | K8: 2 | L8: 51,40,45 | N8: =IF(K8=K9,"",IF(K8>K9,J8,J9)) -> Felix Kirsten | P8: 5 | Q8: =IF(C6>C7,B7,IF(C7>C6,B6,"")) -> Michael Kandler
J9: =IF(G10=G11,"",IF(G10>G11,F10,F11)) -> Felix Kirsten | K9: 3 | L9: 43.37 | P9: 5 | Q9: =IF(C10>C11,B11,IF(C11>C10,B10,"")) -> Marec Stachly
A10: 3 | B10: =IFERROR(VLOOKUP(1,Gruppen!M20:O23,3,FALSE),"") -> Marec Stachly | C10: 1 | E10: 2 | F10: =IF(C10=C11,"",IF(C10>C11,B10,B11)) -> Gustav Hollnagel | G10: 1 | H10: 38 | P10: 5 | Q10: =IF(C13>C14,B14,IF(C14>C13,B13,"")) -> Moritz Thomas
B11: =IFERROR(VLOOKUP(2,Gruppen!M11:O14,3,FALSE),"") -> Gustav Hollnagel | C11: 3 | D11: 30 | F11: =IF($C$13=$C$14,"",IF($C$13>$C$14,$B$13,$B$14)) -> Felix Kirsten | G11: 3 | H11: 30 | P11: 9 | Q11: =_xlfn.IFNA(VLOOKUP(3,Gruppen!$M$2:$O$5,3,FALSE),"") -> Marco Weber
J12: Spiel um Platz 3 | K12: Bo3 | N12: Dritter | P12: 9 | Q12: =_xlfn.IFNA(VLOOKUP(3,Gruppen!$M$11:$O$14,3,FALSE),"") -> Christopher Jaritz
A13: 4 | B13: =IFERROR(VLOOKUP(1,Gruppen!M29:O32,3,FALSE),"") -> Felix Kirsten | C13: 3 | J13: =IF(G6=G7,"",IF(G6<G7,F6,F7)) -> Tino Delling | K13: 1 | N13: =IF(K13=K14,"",IF(K13>K14,J13,J14)) -> Gustav Hollnagel | P13: 9 | Q13: =_xlfn.IFNA(VLOOKUP(3,Gruppen!$M$20:$O$23,3,FALSE),"") -> Andy Swennen
B14: =IFERROR(VLOOKUP(2,Gruppen!M2:O5,3,FALSE),"") -> Moritz Thomas | C14: 2 | D14: 48 | J14: =IF(G10=G11,"",IF(G10<G11,F10,F11)) -> Gustav Hollnagel | K14: 2 | P14: 9 | Q14: =_xlfn.IFNA(VLOOKUP(3,Gruppen!$M$29:$O$32,3,FALSE),"") -> David Gärtner
P15: 13 | Q15: =_xlfn.IFNA(VLOOKUP(4,Gruppen!$M$2:$O$5,3,FALSE),"") -> Andreas Hartung
P16: 13 | Q16: =_xlfn.IFNA(VLOOKUP(4,Gruppen!$M$11:$O$14,3,FALSE),"") -> Sven Ohlenroth
P17: 13 | Q17: =_xlfn.IFNA(VLOOKUP(4,Gruppen!$M$20:$O$23,3,FALSE),"") -> Jörg Bonitz
P18: 13 | Q18: =_xlfn.IFNA(VLOOKUP(4,Gruppen!$M$29:$O$32,3,FALSE),"") -> Marko Straßburger
